bitfinex/quotes_ETHUSD_20241129
["timestamp","ask_amount","ask_price","bid_price","bid_amount"]
[1732903905678,0.03729928,3589.4,3588.9,2.7863]
[1732903906101,2.82328928,3589.4,3588.9,2.7863]
[1732903906413,0.03729928,3589.4,3588.7,2.78651]
[1732903906621,2.78582,3589.6,3588.9,2.78636]
[1732903906780,0.03724871,3589.3,3588.9,2.78636]
[1732903906983,2.78593,3589.5,3588.9,2.78636]
[1732903907178,0.03713168,3589.2,3588.9,2.78636]
[1732903907497,0.03708112,3589.1,3588.9,2.78636]
[1732903907807,2.7859,3589.5,3588.9,2.78636]
[1732903907988,0.03703055,3589.0,3588.9,2.78636]
[1732903908191,2.7859,3589.5,3588.9,3.04688683]
[1732903908513,2.78599,3589.4,3588.7,2.78651]
[1732903908708,2.7861,3589.3,3588.8,0.26052394]
[1732903908895,0.03713168,3589.2,3588.7,2.78651]
[1732903909083,0.03713168,3589.2,3588.8,0.26052521]
[1732903909279,2.7861,3589.3,3588.8,2.78643]
[1732903909486,0.03711398,3589.2,3588.8,2.78643]
[1732903909718,2.7861,3589.3,3588.8,2.78643]
[1732903910021,0.03706342,3589.1,3588.6,2.78653]
[1732903910182,2.7861,3589.3,3588.7,0.26049669]
[1732903910183,0.03711398,3589.2,3588.7,0.26049669]
[1732903910515,2.78622,3589.1,3588.5,2.78664]
[1732903910716,0.03701285,3589.0,3588.6,3.0471035]
[1732903910927,2.78599,3589.4,3588.7,2.78647]
[1732903911129,0.03696228,3588.9,3588.7,2.78647]
[1732903911283,2.78606,3589.3,3588.7,2.78647]
[1732903911484,0.03711398,3589.2,3588.7,2.78647]
[1732903911683,2.82325398,3589.2,3588.7,2.78647]
[1732903913021,2.82325398,3589.2,3588.5,2.78664]
[1732903913237,2.82325398,3589.2,3588.6,3.04709562]
[1732903913388,2.82325398,3589.2,3588.6,2.78659]
[1732903913590,2.82325398,3589.2,3588.7,2.7865]
[1732903913932,0.03711398,3589.2,3588.8,2.78642]
[1732903914090,2.78599,3589.4,3588.8,2.78639]
[1732903914430,3.34779121,3589.6,3588.4,0.7533]
[1732903914431,0.03716455,3589.3,3589.0,2.78623]
[1732903914640,0.03716455,3589.3,3589.1,2.78613]
[1732903914789,0.56195121,3589.6,3589.2,2.78613]
[1732903915211,2.78576,3589.7,3589.2,2.78613]
[1732903915399,5.78567,3589.8,3589.1,2.78613]
[1732903915586,2.78577,3589.7,3589.1,2.78613]
[1732903915927,3.3373857,3589.7,3589.1,2.78613]
[1732903916108,0.03763445,3589.6,3589.1,2.78613]
[1732903916522,0.03763445,3589.6,3589.0,0.278623]
[1732903916834,2.82350445,3589.6,3589.0,2.78624]
[1732903918489,0.03763445,3589.6,3589.0,2.78624]
[1732903918910,2.82350445,3589.6,3589.0,2.78624]
[1732903919324,2.7859,3589.5,3588.8,2.78642]
[1732903919502,0.03757709,3589.4,3588.8,5.57279]
[1732903919690,0.03757709,3589.4,3588.9,2.78633]
[1732903920834,0.03757709,3589.4,3589.0,2.78626]
[1732903921335,0.03752654,3589.3,3589.0,2.78626]
[1732903921790,2.7859,3589.5,3588.8,3.398659]
[1732903921992,0.03714472,3589.2,3588.9,0.26061146]
[1732903922196,2.78618,3589.2,3588.6,2.78653]
[1732903922403,0.03709415,3589.1,3588.7,0.26062476]
[1732903922707,0.03709415,3589.1,3588.6,2.78653]
[1732903922909,2.78629,3589.0,3588.2,2.78687]
[1732903923112,2.7865,3588.8,3588.3,0.26065026]
[1732903923331,2.82343219,3588.7,3588.1,2.78698]
[1732903923668,2.78683,3588.3,3587.7,0.8002]
[1732903923814,0.5674,3588.4,3587.8,0.26062934]
[1732903924148,0.5674,3588.4,3587.9,0.26062934]
[1732903924149,0.03657681,3588.3,3587.9,0.26062934]
[1732903924363,0.03657681,3588.3,3587.7,3.58747]
[1732903924364,0.03657681,3588.3,3587.8,2.78721]
[1732903924660,0.03657681,3588.3,3587.9,3.04766274]
[1732903924850,0.03657681,3588.3,3588.0,0.26054274]
[1732903925159,0.03648522,3588.2,3587.9,2.78712]
[1732903925515,0.5674,3588.4,3587.9,2.78712]
[1732903925717,0.03653581,3588.3,3587.9,2.78712]
[1732903926137,0.03653581,3588.3,3587.9,3.43123605]
[1732903926859,0.03653581,3588.3,3588.0,2.78704]
[1732903927030,0.03653581,3588.3,3588.2,2.78691]
[1732903927381,0.03653581,3588.3,3587.9,3.43119605]
[1732903927382,0.03529715,3588.3,3587.9,3.43119605]
[1732903927737,2.78654,3588.7,3588.2,2.78691]
[1732903928454,2.78654,3588.7,3588.1,2.78697]
[1732903928670,2.78654,3588.7,3588.0,2.78706]
[1732903928830,2.78668,3588.5,3587.9,3.43125605]
[1732903930176,2.78668,3588.5,3587.7,0.8002]
[1732903930177,2.78682,3588.4,3587.7,0.8002]
[1732903930372,2.78694,3588.2,3587.7,0.8002]
[1732903930530,0.5674,3588.5,3587.7,0.8002]
[1732903930531,2.78689,3588.3,3587.7,0.8002]
[1732903930731,2.7871,3588.0,3587.4,3.54292]
[1732903931069,2.78709,3588.0,3587.4,0.7554]
[1732903931279,2.82224589,3587.9,3587.3,2.78756]
[1732903931844,2.78722,3587.8,3587.3,2.78756]
[1732903932074,0.03508589,3587.9,3587.3,2.7876]
[1732903932240,0.03493369,3587.7,3587.3,2.7876]
[1732903932442,0.03498429,3587.8,3587.2,2.78767]
[1732903932737,0.03488308,3587.6,3587.4,2.78752]
[1732903932982,0.03481473,3587.5,3587.0,3.59313]
[1732903933187,0.03481473,3587.5,3587.1,3.04797406]
[1732903933385,2.78731,3587.7,3587.1,2.78776]
[1732903933695,0.03476412,3587.4,3586.8,2.78794]
[1732903933845,0.5674,3587.6,3587.0,2.78784]
[1732903934047,0.03462925,3587.3,3587.0,2.78784]
[1732903934356,0.03457863,3587.2,3587.0,2.78784]
[1732903934770,3.35478,3587.6,3587.0,2.78784]
[1732903934941,0.5674,3587.6,3587.2,2.78767]
[1732903935149,2.78714,3587.9,3587.3,2.7876]
[1732903935366,2.78706,3588.1,3587.5,2.78743]
[1732903936150,2.78707,3588.0,3587.4,3.5396]
[1732903936380,2.78713,3588.0,3587.4,0.7521]
[1732903936548,2.78713,3588.0,3587.4,3.53961]
[1732903937482,3.35434,3588.2,3587.5,2.7874]
[1732903937650,3.0,3588.1,3587.6,2.78733]
[1732903938294,2.78699,3588.1,3587.6,2.78733]
[1732903938493,0.03492809,3588.0,3587.6,2.78733]
[1732903939760,0.03492809,3588.0,3587.9,2.78714]
[1732903941597,0.03492809,3588.0,3587.9,3.83900816]
[1732903941908,0.03492809,3588.0,3587.9,6.60700334]
[1732903942061,0.03492809,3588.0,3587.9,6.57914]
[1732903942263,0.03492809,3588.0,3587.9,7.11707509]
[1732903942489,0.03492809,3588.0,3587.9,8.72852317]
[1732903944556,0.03492809,3588.0,3587.9,9.00042317]
[1732903945171,0.03492809,3588.0,3587.9,8.74058808]
[1732903945382,0.03492809,3588.0,3587.9,9.00037152]
[1732903945970,3.0,3589.7,3588.2,0.8198]
[1732903946258,1.13056429,3589.8,3589.4,2.78597]
[1732903946472,0.03250084,3589.6,3589.4,2.78597]
[1732903946671,0.5674,3589.8,3589.4,2.78597]
[1732903946886,0.03245029,3589.5,3589.4,2.78597]
[1732903947072,0.5674,3589.8,3589.4,2.78597]
[1732903947256,0.03245604,3589.5,3589.4,2.78597]
[1732903947462,0.54805214,3590.1,3589.7,2.78574]
[1732903947909,1.23813835,3590.1,3589.5,2.78584]
[1732903948398,1.23813835,3590.1,3589.6,2.78581]
[1732903948564,4.02362835,3590.1,3589.4,2.78594]
[1732903948767,2.78552,3590.0,3589.3,2.78603]
[1732903949117,1.23813835,3590.1,3589.5,2.78584]
[1732903949260,0.03264816,3589.9,3589.5,2.78584]
[1732903949464,0.03269871,3590.0,3589.5,2.78584]
[1732903949775,0.03158802,3589.9,3589.5,2.78584]
[1732903949956,0.03158802,3589.9,3589.0,0.8198]
[1732903950161,4.02362835,3590.1,3589.2,2.78613]
[1732903950356,0.03153747,3589.8,3589.2,2.78613]
[1732903950589,2.78559,3590.0,3589.2,2.78613]
[1732903950769,0.03148692,3589.7,3589.0,3.60607]
[1732903950987,2.78577,3589.7,3589.0,2.78627]
[1732903951190,1.1559767,3589.6,3589.2,2.78613]
[1732903952399,1.1559767,3589.6,3589.3,2.78605]
[1732903952562,0.0314407,3589.6,3589.5,2.7859]
[1732903953004,3.353,3589.9,3589.3,2.78605]
[1732903953378,0.03166658,3589.8,3589.3,2.78605]
[1732903953576,0.03166658,3589.8,3589.4,2.7859]
[1732903953805,0.03166658,3589.8,3589.1,2.78619]
[1732903954116,2.78575,3589.7,3589.1,2.78619]
[1732903954318,0.03162769,3589.6,3589.1,2.78619]
[1732903954515,0.03162769,3589.6,3589.3,2.78604]
[1732903954709,0.18372049,3589.8,3589.3,2.78604]
[1732903954918,0.03167825,3589.7,3589.3,2.78604]
[1732903955312,0.03167825,3589.7,3589.1,2.78619]
[1732903955510,0.66708412,3589.7,3589.3,2.78605]
[1732903955697,0.03167825,3589.7,3589.3,2.78605]
[1732903956904,0.03167825,3589.7,3589.1,2.78619]
[1732903957231,0.03167825,3589.7,3589.3,2.78604]
[1732903957530,0.03167825,3589.7,3589.4,2.78595]
[1732903958791,0.03167825,3589.7,3588.8,5.57288]
[1732903958996,0.03167825,3589.7,3589.4,2.78593]
[1732903959398,0.5674,3589.9,3589.4,2.78593]
[1732903959613,0.0316485,3589.6,3589.4,2.78593]
[1732903959957,0.03159795,3589.5,3589.4,2.78593]
[1732903960224,0.5674,3589.9,3589.5,2.78583]
[1732903960411,1.25748921,3589.9,3589.4,2.78593]
[1732903960585,1.25748921,3589.9,3589.6,2.78576]
[1732903960790,0.54805214,3590.1,3589.8,2.78562]
[1732903961136,0.5674,3590.3,3590.0,2.7855]
[1732903961350,2.88426,3591.7,3590.0,2.7855]
[1732903961351,0.5674,3590.7,3590.2,2.78536]
[1732903961737,0.5674,3590.7,3590.3,2.78527]
[1732903961940,0.5674,3590.7,3590.4,2.78518]
[1732903962246,0.90262,3590.7,3590.4,2.78518]
[1732903962617,0.90262,3590.7,3590.5,2.78512]
[1732903962618,0.5674,3590.7,3590.5,2.78512]
[1732903962955,0.5674,3591.1,3590.1,2.78543]
[1732903963116,0.5674,3591.1,3590.5,2.78511]
[1732903963311,0.5674,3591.1,3590.1,0.826]
[1732903963525,1.11764596,3591.1,3590.7,2.78495]
[1732903963729,0.03123358,3591.0,3590.4,2.78515]
[1732903963947,0.39335095,3590.9,3590.4,2.78515]
[1732903964147,0.03113254,3590.8,3590.5,2.7851]
[1732903964721,4.11764596,3591.1,3590.6,2.78503]
[1732903965047,0.03123358,3591.0,3590.6,2.78503]
[1732903965248,0.03123358,3591.0,3590.8,2.78488]
[1732903965451,0.03123358,3591.0,3590.9,2.78481]
[1732903966169,0.5674,3591.4,3591.0,2.78471]
[1732903966323,0.5674,3591.4,3591.1,2.7846]
[1732903966531,0.98030734,3591.4,3590.8,2.78486]
[1732903966750,0.98030734,3591.4,3591.0,2.78467]
[1732903966951,0.41290734,3591.4,3591.1,2.78463]
[1732903967461,0.41290734,3591.4,3590.8,3.55406]
[1732903967462,0.03091457,3591.3,3590.9,2.78476]
[1732903967619,0.03091457,3591.3,3591.0,2.78472]
[1732903969029,0.03091457,3591.3,3591.1,2.78465]
[1732903969444,0.03091457,3591.3,3591.2,2.78458]
[1732903969827,4.12152528,3591.7,3591.2,2.78458]
[1732903970143,5.39048581,3591.7,3590.8,0.7692]
[1732903970364,0.03076087,3591.6,3591.4,2.78437]
[1732903970543,0.03076087,3591.6,3591.5,3.55425]
[1732903970861,0.5674,3592.5,3591.6,2.78425]
[1732903970862,3.35098,3592.5,3591.6,2.78425]
[1732903971063,0.5674,3592.5,3591.7,2.78418]
[1732903971242,0.03041782,3592.4,3592.3,2.78372]
[1732903971565,3.35069,3592.9,3592.3,2.78372]
[1732903971724,0.0306197,3592.8,3592.2,2.7838]
[1732903972856,3.0,3592.7,3592.1,2.78388]
[1732903973190,0.03059757,3592.6,3592.1,2.78388]
[1732903974050,0.03059757,3592.6,3591.9,2.78403]
[1732903974261,2.81409757,3592.6,3591.9,2.78403]
[1732903975446,2.78359,3592.5,3591.7,2.78419]
[1732903975645,2.78366,3592.4,3591.5,0.7699]
[1732903975989,0.5674,3592.2,3591.7,2.78418]
[1732903976483,0.03038069,3592.1,3591.7,2.78418]
[1732903977889,0.03038069,3592.1,3591.8,0.02783935]
[1732903978095,0.03038069,3592.1,3592.0,2.78396]
[1732903978388,0.03038069,3592.1,3592.0,0.556801]
[1732903978542,2.78342,3592.7,3591.6,2.78422]
[1732903978752,2.78371,3592.4,3591.7,2.78414]
[1732903979103,0.03048165,3592.3,3591.8,2.78408]
[1732903980174,2.81421165,3592.3,3591.6,2.78421]
[1732903981056,2.81421165,3592.3,3591.7,2.78418]
[1732903981265,0.03048165,3592.3,3591.7,0.66166806]
[1732903981600,3.34984944,3592.5,3591.9,2.78403]
[1732903981744,0.03061273,3592.2,3591.7,2.78416]
[1732903982456,0.03061273,3592.2,3591.9,2.78404]
[1732903982989,0.03056225,3592.1,3591.9,2.78404]
[1732903983190,0.03056225,3592.1,3591.7,2.78416]
[1732903983493,0.56626944,3592.5,3591.7,3.42078191]
[1732903983694,0.03049365,3592.0,3591.9,2.78403]
[1732903983844,0.53287986,3592.5,3591.9,2.78403]
[1732903984048,0.03048724,3592.0,3591.9,2.78403]
[1732903984257,0.53287986,3592.5,3592.0,2.78396]
[1732903984547,2.78364,3592.5,3591.9,0.62326503]
[1732903984750,2.78364,3592.5,3591.8,2.78408]
[1732903984947,3.5674,3592.8,3591.6,2.78425]
[1732903985171,3.5674,3592.8,3591.7,2.78418]
[1732903985172,2.78377,3592.3,3591.7,2.78418]
[1732903985376,2.78377,3592.3,3591.5,0.7699]
[1732903985577,2.78391,3592.1,3591.5,0.7699]
[1732903985780,2.78413,3591.8,3591.2,0.8308]
[1732903985949,2.78432,3591.6,3591.0,2.78468]
[1732903986157,0.02923178,3591.5,3591.1,2.78464]
[1732903986762,2.81360178,3591.5,3590.9,3.61556]
[1732903986949,2.81360178,3591.5,3591.0,0.640052]
[1732903987145,2.81360178,3591.5,3591.0,3.424772]
[1732903987408,2.81360178,3591.5,3591.0,0.640052]
[1732903987797,2.78443,3591.4,3591.0,0.640052]
[1732903988096,0.02909528,3591.3,3591.0,0.640052]
[1732903989181,2.81360528,3591.3,3590.7,2.78495]
[1732903989348,0.02909528,3591.3,3590.4,2.78513]
[1732903989554,2.78458,3591.2,3590.5,0.2585355]
[1732903989872,2.81373068,3591.1,3590.4,2.78513]
[1732903990391,2.81373068,3591.1,3590.6,2.78503]
[1732903990554,0.02900068,3591.1,3590.6,0.557016]
[1732903990752,2.78468,3591.1,3590.6,0.557016]
[1732903991087,0.02890027,3591.0,3590.6,3.342046]
[1732903993907,0.02884976,3590.9,3590.6,2.78499]
[1732903994202,2.78454,3591.3,3590.7,0.557016]
[1732903994402,0.02879924,3590.8,3590.7,0.58486395]
[1732903994559,3.33483456,3592.1,3591.4,2.78437]
[1732903994891,3.35114,3592.3,3591.8,2.7841]
[1732903994892,0.5674,3592.3,3591.8,2.7841]
[1732903995049,0.02930824,3592.0,3591.8,2.78406]
[1732903995254,0.5674,3592.7,3592.1,2.78387]
[1732903995699,2.7834,3592.8,3592.1,2.78387]
[1732903995850,2.78366,3592.4,3591.9,0.359356]
[1732903996056,2.78352,3592.6,3592.0,2.78394]
[1732903996697,3.0,3592.7,3592.2,2.78379]
[1732903997101,2.81291604,3592.6,3592.0,2.78394]
[1732903997394,0.02941604,3592.6,3592.1,2.78387]
[1732903997662,3.02941604,3592.6,3592.1,2.78387]
[1732903997753,3.02941604,3592.6,3592.4,2.78365]
[1732903997754,0.02941604,3592.6,3592.4,2.78365]
[1732903997956,0.56670035,3592.9,3592.5,2.78357]
[1732903998158,0.02987866,3592.8,3592.5,2.78357]
[1732903998503,0.02987866,3592.8,3592.3,3.593]
[1732903998708,0.02987866,3592.8,3592.5,2.81140351]
[1732903998997,2.78319,3593.0,3592.4,0.39073226]
[1732903999211,0.02977385,3592.9,3592.1,3.0981726]
[1732903999358,2.78334,3592.8,3592.2,2.78379]
[1732903999554,0.02969264,3592.7,3592.2,2.78379]
[1732904000057,0.02871159,3592.6,3592.2,2.78379]
[1732904000504,2.58437935,3592.8,3592.1,1.1065226]
[1732904000655,0.02866111,3592.5,3592.2,3.45185843]
[1732904000993,0.02818575,3592.4,3592.2,3.45185843]
[1732904001167,2.58437935,3592.8,3592.2,3.45185843]
[1732904001380,0.02831905,3592.7,3592.3,2.78373]
[1732904001695,2.58437935,3592.8,3592.3,2.78373]
[1732904001857,0.02828991,3592.6,3592.3,3.5179531]
[1732904002058,0.02834038,3592.7,3592.3,3.5179531]
[1732904002266,0.02823944,3592.5,3592.3,3.5179531]
[1732904002485,2.58437935,3592.8,3592.3,3.5179531]
[1732904002701,0.02818896,3592.4,3592.3,3.5179531]
[1732904002997,0.02822841,3592.4,3592.3,3.5179531]
[1732904003308,2.58437935,3592.8,3592.3,0.7342231]
[1732904003470,0.02800584,3592.4,3592.1,0.7922]
[1732904003810,0.02795535,3592.3,3592.1,0.7922]
[1732904004020,0.02795535,3592.3,3592.1,3.57608]
[1732904004185,0.02795535,3592.3,3591.7,2.78417]
[1732904004509,0.0278862,3592.2,3591.7,3.59307]
[1732904004668,0.0278862,3592.2,3591.8,0.637739]
[1732904004869,2.78381,3592.2,3591.8,0.637739]
[1732904005070,2.81178438,3592.1,3591.7,0.8089]
[1732904006206,0.02785438,3592.1,3591.7,0.8089]
[1732904006427,2.78377,3592.3,3591.7,0.8089]
[1732904006576,2.78361,3592.5,3591.7,0.8089]
[1732904006778,0.0280548,3592.4,3591.7,3.59307]
[1732904007003,2.78381,3592.2,3591.7,4.17093939]
[1732904007204,0.02789447,3592.1,3591.7,4.17093939]
[1732904007524,0.02789447,3592.1,3591.7,1.38676939]
[1732904008770,2.81177447,3592.1,3591.7,1.38676939]
[1732904009576,2.81177447,3592.1,3591.4,0.8164]
[1732904009920,0.02789447,3592.1,3591.4,0.8164]
[1732904010081,2.78423,3591.7,3591.0,2.78468]
[1732904010500,0.02788671,3591.6,3590.9,2.78481]
[1732904010706,0.02788671,3591.6,3591.0,2.78468]
[1732904010913,0.02788671,3591.6,3591.0,3.424809]
[1732904011419,0.02788671,3591.6,3591.0,3.424859]
[1732904011779,2.81221671,3591.6,3591.0,3.424859]
[1732904012015,0.02788671,3591.6,3591.0,0.640129]
[1732904012183,2.78427,3591.6,3590.9,0.2781]
[1732904012382,2.8123278,3591.5,3590.9,0.2781]
[1732904012699,2.78448,3591.4,3590.9,0.2781]
[1732904012902,0.0279278,3591.5,3590.7,0.8318]
[1732904013110,2.78471,3591.1,3590.7,0.8318]
[1732904013479,2.8124026,3591.0,3590.7,0.8318]
[1732904013673,2.78494,3590.8,3590.3,0.7999]
[1732904013890,2.8124526,3591.0,3590.3,0.7999]
[1732904014077,0.02746766,3590.7,3590.4,0.358523]
[1732904014392,2.78416,3591.8,3591.1,2.78463]
[1732904014610,0.5674,3592.1,3591.2,0.7999]
[1732904014611,2.78404,3591.9,3591.2,0.7999]
[1732904014903,2.78417,3591.8,3591.2,0.7999]
[1732904015215,2.78417,3591.8,3591.2,3.58446]
[1732904015442,0.02792056,3591.7,3591.2,3.58446]
[1732904015794,0.02792056,3591.7,3591.4,2.78442]
[1732904015988,0.02792056,3591.7,3591.5,0.02784175]
[1732904016189,3.0,3592.2,3591.6,2.78427]
[1732904016389,0.02801356,3592.1,3591.6,2.78426]
[1732904016625,2.81189356,3592.1,3591.6,2.78426]
[1732904017130,0.02801356,3592.1,3591.7,2.78419]
[1732904017296,0.02801356,3592.1,3591.9,3.59502]
[1732904017297,0.55128529,3592.0,3591.9,3.59502]
[1732904017678,0.57933602,3592.0,3591.9,3.59502]
[1732904018288,0.02805073,3592.0,3591.9,3.59502]
[1732904019020,0.0279345,3592.0,3591.9,3.59502]
[1732904019317,0.0279345,3592.0,3591.6,3.54667]
[1732904019490,0.56426786,3592.5,3591.6,3.54667]
[1732904019700,0.02788401,3591.9,3591.8,2.78411]
[1732904019922,0.56426786,3592.5,3591.8,2.78411]
[1732904019923,3.34790786,3592.5,3591.8,2.78411]
[1732904020223,2.81182414,3592.4,3591.8,2.78411]
[1732904020688,2.78375,3592.3,3591.6,3.54667]
[1732904020889,2.81182414,3592.4,3591.6,0.7624]
[1732904021083,0.02806319,3592.2,3591.7,2.78414]
[1732904021303,0.02811367,3592.3,3591.8,2.78409]
[1732904021848,2.81185367,3592.3,3591.8,2.78409]
[1732904022052,2.81185367,3592.3,3591.6,0.7624]
[1732904022053,2.78387,3592.2,3591.6,0.7624]
[1732904022330,2.78387,3592.2,3591.3,0.7624]
[1732904022529,2.784,3592.0,3591.4,2.78437]
[1732904022694,0.56587903,3591.9,3591.4,2.78437]
[1732904023209,0.02786125,3591.8,3591.6,2.78426]
[1732904024341,0.02786125,3591.8,3591.4,3.417499]
[1732904024635,0.02786125,3591.8,3591.6,2.78422]
[1732904024802,0.02786125,3591.8,3591.4,3.417499]
[1732904026697,2.81205125,3591.8,3591.4,0.633129]
[1732904027035,2.81205125,3591.8,3591.3,3.5469]
[1732904027401,0.02786125,3591.8,3591.3,3.5469]
[1732904027709,0.02786125,3591.8,3591.4,2.78442]
[1732904028639,2.78397,3592.0,3591.4,2.78442]
[1732904028843,0.02781076,3591.7,3591.4,2.78442]
[1732904029046,2.78397,3592.0,3591.4,3.417559]
[1732904029544,2.78397,3592.0,3591.2,2.78457]
[1732904029728,2.78416,3591.8,3591.3,2.7845]
[1732904029941,2.81197174,3591.9,3591.4,2.78441]
[1732904030112,0.02785069,3591.7,3591.2,2.78452]
[1732904030343,0.02790118,3591.8,3591.2,2.78452]
[1732904030516,0.0278002,3591.6,3591.3,0.633162]
[1732904030717,0.02785069,3591.7,3591.3,0.633162]
[1732904031018,2.78412,3591.8,3591.3,0.633162]
[1732904031222,0.02785069,3591.7,3591.3,3.417652]
[1732904031448,2.78381,3592.2,3591.4,0.7624]
[1732904031653,0.54811079,3592.3,3591.5,2.78429]
[1732904031654,2.78394,3592.1,3591.5,2.78429]
[1732904031951,2.78401,3592.0,3591.4,3.54681]
[1732904032308,2.81203167,3591.9,3591.4,0.7624]
[1732904033547,0.02795167,3591.9,3591.4,3.54676]
[1732904033856,0.02795167,3591.9,3591.5,3.138976]
[1732904034206,2.78397,3592.0,3591.5,0.354676]
[1732904034408,0.02708905,3591.9,3591.5,0.354676]
[1732904034811,2.81119905,3591.9,3591.5,0.354676]
[1732904035048,2.81119905,3591.9,3591.4,0.7624]
[1732904035231,2.78413,3591.8,3591.4,0.7624]
[1732904035421,2.78413,3591.8,3591.2,2.78456]
[1732904035622,0.02708905,3591.9,3591.5,2.78434]
[1732904037552,3.33189079,3592.3,3591.5,2.78434]
[1732904037553,2.78381,3592.2,3591.6,0.8323]
[1732904037757,0.02603155,3591.8,3591.6,3.61655]
[1732904038055,2.78381,3592.2,3591.7,1.05512953]
[1732904038350,0.54811079,3592.3,3591.7,2.81202909]
[1732904038677,0.54811079,3592.3,3591.8,2.78405]
[1732904038952,3.0,3592.5,3591.9,2.78399]
[1732904039165,2.78353,3592.6,3592.1,2.78387]
[1732904039456,2.78353,3592.6,3592.0,2.78389]
[1732904039964,2.78359,3592.5,3591.8,2.78408]
[1732904040264,0.61332912,3592.5,3591.9,0.41495225]
[1732904040464,0.61332912,3592.5,3591.6,3.61653]
[1732904040465,2.78365,3592.4,3591.6,3.61653]
[1732904040757,2.78378,3592.3,3591.7,3.19916924]
[1732904040940,2.78378,3592.3,3591.8,3.19905924]
[1732904041258,2.78378,3592.3,3591.6,2.78423]
[1732904041259,0.02538269,3592.2,3591.6,2.78423]
[1732904041553,2.78393,3592.1,3591.7,0.41500768]
[1732904041758,2.78397,3592.0,3591.8,0.41500768]
[1732904041957,2.80926391,3592.0,3591.4,2.78439]
[1732904042255,2.80926391,3592.0,3591.5,0.41501576]
[1732904042420,2.80926391,3592.0,3591.6,0.41501576]
[1732904042619,2.80926391,3592.0,3591.7,0.41501576]
[1732904042814,2.80926391,3592.0,3591.8,0.41501576]
[1732904043125,2.80926391,3592.0,3591.4,3.45963256]
[1732904043451,2.80926391,3592.0,3591.5,0.41512409]
[1732904043659,2.80926391,3592.0,3591.6,0.41512409]
[1732904043814,2.80926391,3592.0,3591.7,0.41512409]
[1732904044014,2.80926391,3592.0,3591.8,0.41512409]
[1732904044244,2.80926391,3592.0,3591.9,0.41540102]
[1732904044445,2.80926391,3592.0,3591.4,3.45963256]
[1732904044656,0.02529391,3592.0,3591.5,3.94271567]
[1732904044952,0.02529391,3592.0,3591.6,0.41562885]
[1732904045252,3.34780044,3592.2,3591.7,0.41562885]
[1732904045453,2.7839,3592.1,3591.8,0.41562885]
[1732904045662,2.7839,3592.1,3591.9,0.41562885]
[1732904045846,2.7839,3592.1,3591.5,0.74276682]
[1732904045847,2.78396,3592.0,3591.5,2.78429]
[1732904046052,2.78396,3592.0,3591.6,0.41566452]
[1732904046218,2.78396,3592.0,3591.7,0.41566477]
[1732904046419,2.78396,3592.0,3591.8,0.41566477]
[1732904046649,2.78376,3592.3,3591.9,0.41566477]
[1732904046851,2.78376,3592.3,3591.7,2.78415]
[1732904047149,2.78376,3592.3,3591.4,2.78439]
[1732904047150,2.78388,3592.1,3591.8,0.93537645]
[1732904047319,3.340644,3592.1,3591.9,0.41572328]
[1732904047518,2.78388,3592.1,3592.0,0.41576664]
[1732904047956,2.784,3592.0,3591.5,0.51970919]
[1732904048121,2.784,3592.0,3591.3,3.96867413]
[1732904048122,2.784,3592.0,3591.6,0.93550766]
[1732904048316,2.784,3592.0,3591.7,0.93550766]
[1732904048646,2.78381,3592.2,3591.8,0.41579847]
[1732904048847,2.78389,3592.1,3591.9,0.41579847]
[1732904049016,2.78389,3592.1,3591.5,2.78428]
[1732904049017,2.81193779,3592.1,3592.0,0.41579847]
[1732904049766,2.78402,3592.0,3591.4,2.78442]
[1732904049960,2.78402,3592.0,3591.5,0.41603431]
[1732904050150,0.02817498,3591.9,3591.4,2.78442]
[1732904050464,0.02817498,3591.9,3591.5,0.632016]
[1732904050808,3.0,3593.1,3591.9,0.8198]
[1732904050809,5.78349,3592.6,3591.9,0.8198]
[1732904051066,2.78366,3592.4,3591.9,0.8198]
[1732904051656,0.0305801,3592.5,3591.9,3.60384]
[1732904051870,2.8141601,3592.5,3592.0,0.638801]
[1732904052013,0.02850972,3592.4,3592.0,0.638801]
[1732904052885,0.02850972,3592.4,3592.0,2.78395]
[1732904053250,0.02850972,3592.4,3591.9,0.8198]
[1732904053450,0.02850972,3592.4,3592.0,0.25998984]
[1732904053768,0.02850972,3592.4,3592.1,0.25998984]
[1732904053974,0.02850972,3592.4,3592.2,0.25998984]
[1732904054269,0.02850972,3592.4,3592.3,0.25998984]
[1732904055634,0.0305801,3592.5,3592.3,0.25998984]
[1732904056004,0.0305801,3592.5,3592.4,0.25998984]
[1732904056772,0.0305801,3592.5,3592.4,3.04363984]
[1732904056936,0.0305801,3592.5,3592.4,0.84551733]
[1732904058778,0.0305801,3592.5,3592.4,3.65700189]
[1732904058982,0.0305801,3592.5,3592.4,4.45329929]
[1732904059581,0.05881824,3592.5,3592.4,4.42546733]
[1732904059740,0.05881824,3592.5,3592.4,4.45329671]
[1732904059945,0.0305801,3592.5,3592.4,4.4532968]
[1732904061938,0.0305801,3592.5,3592.4,5.0032968]
[1732904062162,0.0305801,3592.5,3592.4,5.2813968]
[1732904062468,0.0305801,3592.5,3592.4,5.28043699]
[1732904063591,0.0305801,3592.5,3592.4,5.25260752]
[1732904064309,4.82627514,3596.1,3592.4,5.25260752]
[1732904064310,0.5674,3594.7,3594.1,2.78232]
[1732904064645,0.5674,3594.7,3594.2,0.25857381]
[1732904064646,3.34929,3594.7,3594.2,0.25857381]
[1732904064953,2.78209,3594.5,3593.9,2.78249]
[1732904065182,3.34927,3594.7,3594.0,3.04096717]
[1732904065368,3.34927,3594.7,3594.1,0.25855717]
[1732904065548,2.78195,3594.6,3594.2,0.25855717]
[1732904065754,0.59342771,3595.6,3594.3,2.79025167]
[1732904066100,0.59342771,3595.6,3594.7,3.56566]
[1732904066257,0.02602771,3595.6,3594.8,3.04013462]
[1732904066809,0.02602771,3595.6,3595.2,2.78145]
[1732904067014,0.02602771,3595.6,3594.9,2.78171]
[1732904067209,0.02602771,3595.6,3594.9,3.138261]
[1732904067517,0.02602771,3595.6,3595.5,6.35530167]
[1732904067803,0.02602771,3595.6,3595.5,6.61272989]
[1732904068665,0.02602771,3595.6,3595.5,3.82247822]